bitfinex/quotes_SOLUSD_20250710
["timestamp","ask_amount","ask_price","bid_price","bid_amount"]
[1752156194755,48.02428255,157.11,157.1,0.03]
[1752156195860,40.50496722,157.11,157.1,0.03]
[1752156196063,6.3649365,157.12,157.1,0.03]
[1752156198129,7.0649365,157.12,157.1,0.03]
[1752156198547,0.7,157.11,157.1,0.03]
[1752156198741,7.51931533,157.11,157.1,0.03]
[1752156199166,6.3649365,157.12,157.1,0.03]
[1752156199650,7.0749365,157.12,157.1,0.03]
[1752156199832,0.71,157.11,157.1,0.03]
[1752156200037,6.3649365,157.12,157.1,0.03]
[1752156200560,7.0749365,157.12,157.1,0.03]
[1752156201740,0.71,157.11,157.1,0.03]
[1752156202249,7.52931533,157.11,157.1,0.03]
[1752156203541,13.89428255,157.11,157.1,0.03]
[1752156204367,55.94886217,157.11,157.04,6.81931533]
[1752156204553,34.73,157.1,157.04,6.81931533]
[1752156204750,6.81931533,157.09,157.04,6.81931533]
[1752156204951,0.71,157.09,157.05,7.53931533]
[1752156205472,6.36456211,157.12,157.08,6.81931533]
[1752156205769,7.07456211,157.12,157.08,7.53931533]
[1752156206143,0.71,157.11,157.08,0.72]
[1752156206371,6.36456211,157.12,157.08,7.53931533]
[1752156206568,6.36456211,157.12,157.09,7.53931533]
[1752156207065,6.36456211,157.12,157.09,6.81931533]
[1752156207264,6.36456211,157.12,157.07,0.72]
[1752156207470,6.36456211,157.12,157.09,6.81931533]
[1752156207671,34.0,157.14,157.11,6.81931533]
[1752156207873,0.71,157.14,157.1,7.53931533]
[1752156208165,7.07390887,157.14,157.1,7.53931533]
[1752156208344,13.1832242,157.14,157.1,0.72]
[1752156208545,6.36390887,157.14,157.1,7.53931533]
[1752156208745,7.07390887,157.14,157.1,0.72]
[1752156209062,0.71,157.13,157.1,6.81931533]
[1752156209447,13.1832242,157.14,157.1,7.53931533]
[1752156209856,13.8932242,157.14,157.1,7.53931533]
[1752156210769,7.07390887,157.14,157.1,0.72]
[1752156210949,6.36390887,157.14,157.11,7.53931533]
[1752156211270,6.36390887,157.14,157.11,0.72]
[1752156211570,7.07390887,157.14,157.1,6.81931533]
[1752156211744,7.07390887,157.14,157.1,7.53931533]
[1752156212467,0.71,157.13,157.09,6.81931533]
[1752156212762,6.36496722,157.11,157.06,2.2921]
[1752156212948,6.36496722,157.11,157.09,6.81931533]
[1752156213663,33.94,157.13,157.1,7.53931533]
[1752156213847,6.36375206,157.14,157.11,6.81931533]
[1752156214047,7.07375206,157.14,157.11,6.81931533]
[1752156214566,7.07375206,157.14,157.1,7.53931533]
[1752156215772,6.36456211,157.12,157.08,0.72]
[1752156215953,7.07456211,157.12,157.08,7.53931533]
[1752156216156,0.71,157.11,157.08,6.81931533]
[1752156216354,0.71,157.11,157.06,2.2921]
[1752156216556,0.71,157.11,157.08,6.81931533]
[1752156216957,6.36456211,157.12,157.09,7.53931533]
[1752156217448,7.07456211,157.12,157.08,6.81931533]
[1752156217677,7.07456211,157.12,157.08,7.53931533]
[1752156219667,7.07456211,157.12,157.08,6.81931533]
[1752156219668,0.71,157.11,157.08,6.81931533]
[1752156219872,6.36577757,157.09,157.06,6.81931533]
[1752156220164,6.36577757,157.09,157.08,0.03]
[1752156220890,6.36541331,157.1,157.08,6.84931533]
[1752156221058,6.36541331,157.1,157.08,0.03]
[1752156221495,6.3650858,157.11,157.08,7.56931533]
[1752156221663,6.3650858,157.11,157.09,0.72]
[1752156222172,7.0750858,157.11,157.08,6.84931533]
[1752156222363,6.3650858,157.11,157.08,7.56931533]
[1752156222675,6.36465834,157.12,157.09,0.72]
[1752156222873,6.36465834,157.12,157.09,7.53931533]
[1752156223589,6.36465834,157.12,157.08,0.03]
[1752156223793,7.07465834,157.12,157.08,7.56931533]
[1752156225491,7.52931533,157.11,157.08,0.03]
[1752156225995,6.81931533,157.09,157.08,0.03]
[1752156226484,13.8950929,157.09,157.08,0.03]
[1752156226687,47.7150929,157.09,157.08,0.03]
[1752156229687,47.85725447,157.09,157.08,0.03]
[1752156232278,47.7150929,157.09,157.08,0.03]
[1752156234697,47.99941604,157.09,157.08,0.03]
[1752156234878,89.91385998,157.09,157.03,1e-08]
[1752156235077,6.81931533,157.07,157.03,1e-08]
[1752156235286,40.53931533,157.07,157.03,1e-08]
[1752156235597,41.20931533,157.07,157.03,1e-08]
[1752156235794,6.3669935,157.06,157.03,1e-08]
[1752156235997,7.0369935,157.06,157.03,1e-08]
[1752156236576,7.0369935,157.06,157.05,6.81931533]
[1752156236577,6.3669935,157.06,157.05,6.81931533]
[1752156236796,6.3669935,157.06,157.05,0.67]
[1752156237092,6.3669935,157.06,157.04,6.81931533]
[1752156237490,6.3669935,157.06,157.04,7.48931533]
[1752156237801,6.3669935,157.06,157.03,6.81931534]
[1752156238105,60.37,157.09,157.05,7.48931533]
[1752156238106,6.36658814,157.07,157.05,7.48931533]
[1752156238299,6.36658814,157.07,157.05,6.81931533]
[1752156238598,6.36537237,157.1,157.06,7.48931533]
[1752156238779,6.36537237,157.1,157.07,0.67]
[1752156239099,13.1846877,157.1,157.07,0.67]
[1752156240295,13.8546877,157.1,157.05,0.67]
[1752156240603,13.8546877,157.1,157.06,6.81931533]
[1752156240604,6.36537237,157.1,157.06,6.81931533]
[1752156240906,6.36537237,157.1,157.07,0.67]
[1752156241299,6.36514526,157.11,157.08,7.48931533]
[1752156241488,6.36514526,157.11,157.09,7.48931533]
[1752156241683,6.36514526,157.11,157.1,0.67]
[1752156242305,22.27455067,157.13,157.1,0.67]
[1752156242501,22.27455067,157.13,157.09,6.81931533]
[1752156242502,29.763866,157.13,157.09,6.81931533]
[1752156242682,29.763866,157.13,157.09,7.48931533]
[1752156243079,6.36415706,157.13,157.1,7.48931533]
[1752156243281,6.36415706,157.13,157.1,0.67]
[1752156243509,7.03415706,157.13,157.09,6.81931533]
[1752156243711,13.85347239,157.13,157.09,7.48931533]
[1752156244691,13.85347239,157.13,157.09,0.67]
[1752156244885,13.85347239,157.13,157.09,7.48931533]
[1752156245287,6.36415706,157.13,157.12,6.81931533]
[1752156245608,6.42392111,157.14,157.11,6.81931533]
[1752156245908,6.42392111,157.14,157.1,0.67]
[1752156245909,0.67,157.13,157.1,0.67]
[1752156246110,0.67,157.13,157.1,7.48931533]
[1752156246308,13.24323644,157.14,157.1,7.48931533]
[1752156246520,13.91323644,157.14,157.1,7.48931533]
[1752156246700,7.48931533,157.13,157.08,7.51931533]
[1752156247024,0.67,157.12,157.08,7.51931533]
[1752156247318,0.67,157.11,157.08,0.03]
[1752156247790,0.67,157.11,157.08,0.7]
[1752156248606,6.36537237,157.1,157.08,0.03]
[1752156249207,7.03537237,157.1,157.08,0.03]
[1752156249425,6.36537237,157.1,157.08,0.03]
[1752156249636,6.36537237,157.1,157.08,0.7]
[1752156250145,6.36537237,157.1,157.08,0.03]
[1752156250415,0.67,157.09,157.08,0.03]
[1752156250602,7.03577757,157.09,157.08,0.03]
[1752156250999,6.36577757,157.09,157.08,0.03]
[1752156252608,13.1846877,157.1,157.08,0.03]
[1752156252799,13.8546877,157.1,157.08,0.03]
[1752156253025,0.67,157.09,157.08,0.03]
[1752156253205,13.8546877,157.1,157.08,0.03]
[1752156253518,49.53146723,157.12,157.08,0.03]
[1752156253519,33.48931533,157.13,157.09,0.67]
[1752156253727,33.56,157.12,157.09,0.67]
[1752156253901,41.04931533,157.12,157.09,0.67]
[1752156254297,6.36456211,157.12,157.1,0.67]
[1752156254505,7.03456211,157.12,157.08,7.51931533]
[1752156255120,6.36456211,157.12,157.09,0.67]
[1752156256639,6.36456211,157.12,157.08,6.84931533]
[1752156256640,6.36415706,157.13,157.1,7.48931533]
[1752156256845,6.36415706,157.13,157.11,0.67]
[1752156257442,0.67,157.12,157.08,0.7]
[1752156257642,0.67,157.11,157.08,0.7]
[1752156258139,13.85347239,157.13,157.08,7.51931533]
[1752156258344,13.18347239,157.13,157.08,7.51931533]
[1752156258545,0.67,157.12,157.08,7.51931533]
[1752156258719,6.36496722,157.11,157.09,0.67]
[1752156259137,6.36496722,157.11,157.08,7.51931533]
[1752156259337,6.36496722,157.11,157.09,0.67]
[1752156259837,34.27,157.14,157.1,7.48931533]
[1752156260040,6.36432665,157.13,157.11,0.67]
[1752156260744,0.67,157.13,157.1,6.81931533]
[1752156260944,0.67,157.13,157.1,7.48931533]
[1752156261146,13.24306739,157.14,157.11,0.67]
[1752156261147,6.42375206,157.14,157.11,0.67]
[1752156261341,6.42375206,157.14,157.1,6.81931533]
[1752156261342,13.91306739,157.14,157.1,6.81931533]
[1752156261525,13.91306739,157.14,157.1,7.48931533]
[1752156261723,0.67,157.13,157.09,6.81931533]
[1752156261938,0.67,157.13,157.09,7.48931533]
[1752156262251,6.36456211,157.12,157.09,7.48931533]
[1752156262550,6.36428399,157.13,157.1,7.48931533]
[1752156262842,6.36428399,157.13,157.11,7.48931533]
[1752156263046,0.06,157.14,157.12,7.48931533]
[1752156263259,0.06,157.14,157.13,6.81931533]
[1752156263422,0.06,157.14,157.13,7.48931533]
[1752156263622,0.06,157.14,157.13,0.67]
[1752156263623,6.42375206,157.14,157.13,0.67]
[1752156263847,6.42375206,157.14,157.12,6.81931533]
[1752156264036,6.42375206,157.14,157.12,7.48931533]
[1752156264235,0.06,157.14,157.12,7.48931533]
[1752156264643,0.73,157.14,157.11,6.81931533]
[1752156265438,0.73,157.14,157.11,7.48931533]
[1752156266443,6.36415706,157.13,157.11,7.48931533]
[1752156266638,0.06,157.14,157.12,7.48931533]
[1752156266828,0.06,157.14,157.13,7.48931533]
[1752156269441,0.06,157.14,157.13,13.85347239]
[1752156269651,0.06,157.14,157.13,32.50312125]
[1752156271843,0.06,157.14,157.13,58.50312125]
[1752156272057,0.06,157.14,157.13,58.78744439]
[1752156274079,0.06,157.14,157.13,32.78744439]
[1752156274277,0.06,157.16,157.15,58.15112576]
[1752156274562,0.06,157.16,157.15,91.57112576]
[1752156274858,0.06,157.16,157.15,92.24112576]
[1752156275055,0.06,157.21,157.17,0.14216157]
[1752156275263,0.06,157.21,157.2,6.81931533]
[1752156275567,0.06,157.21,157.16,0.67]
[1752156275775,7.54931533,157.21,157.16,6.81931533]
[1752156276075,6.81931533,157.19,157.14,88.67]
[1752156276232,0.67,157.18,157.14,94.81931533]
[1752156276739,0.67,157.18,157.14,95.48931533]
[1752156276937,0.67,157.17,157.14,88.0]
[1752156277155,7.48931533,157.16,157.1,18.64964886]
[1752156277355,7.48931533,157.15,157.11,6.81931533]
[1752156277562,13.85295997,157.15,157.11,6.81931533]
[1752156277746,13.85295997,157.15,157.11,7.48931533]
[1752156278158,7.03364464,157.15,157.11,7.48931533]
[1752156278355,13.85295997,157.15,157.11,7.48931533]
[1752156278981,6.81931533,157.15,157.11,7.48931533]
[1752156280043,13.18295997,157.15,157.11,7.48931533]
[1752156280349,33.42,157.18,157.11,7.48931533]
[1752156280350,6.36253737,157.17,157.11,7.48931533]
[1752156280838,6.81931533,157.15,157.11,7.48931533]
[1752156281436,7.48931533,157.14,157.09,7.48931533]
[1752156281663,7.48931533,157.14,157.1,0.67]
[1752156281664,0.67,157.14,157.1,0.67]
[1752156281856,6.81931533,157.15,157.11,0.67]
[1752156282052,7.48931533,157.15,157.11,0.67]
[1752156282455,6.36375206,157.14,157.11,0.67]
[1752156282680,6.36375206,157.14,157.1,6.81931533]
[1752156282842,13.85306739,157.14,157.09,6.81931533]
[1752156283048,0.67,157.13,157.08,0.03]
[1752156283361,7.48931533,157.12,157.08,0.03]
[1752156283865,0.67,157.11,157.08,0.03]
[1752156284664,7.03511068,157.11,157.08,0.03]
[1752156287053,0.67,157.1,157.08,0.03]
[1752156287280,6.81931533,157.09,157.08,0.03]
[1752156287487,7.48931533,157.1,157.08,0.03]
[1752156287771,0.67,157.09,157.08,0.03]
[1752156288355,7.03511068,157.11,157.08,0.03]
[1752156288545,7.03511068,157.11,157.08,6.84931533]
[1752156288546,6.36511068,157.11,157.08,6.84931533]
[1752156288751,6.36511068,157.11,157.08,7.51931533]
[1752156288953,13.18442601,157.11,157.08,0.03]
[1752156289167,13.90442601,157.11,157.08,0.03]
[1752156289646,6.36511068,157.11,157.08,0.03]
[1752156289861,6.36461045,157.12,157.08,6.84931533]
[1752156290067,13.90392578,157.12,157.08,7.56931533]
[1752156290950,6.36461045,157.12,157.09,7.53931533]
[1752156291956,6.36415706,157.13,157.09,7.53931533]
[1752156292845,6.36415706,157.13,157.09,6.81931533]
[1752156293045,6.36415706,157.13,157.1,7.53931533]
[1752156293259,6.36415706,157.13,157.1,0.72]
[1752156293864,6.36415706,157.13,157.09,6.81931533]
[1752156294068,6.36415706,157.13,157.09,7.53931533]
[1752156294478,6.36415706,157.13,157.1,6.81931533]
[1752156295184,6.36415706,157.13,157.09,7.53931533]
[1752156296088,6.42391766,157.14,157.1,7.53931533]
[1752156296288,6.42391766,157.14,157.11,0.72]
[1752156296583,0.06,157.14,157.13,6.81931533]
[1752156296763,0.06,157.14,157.13,7.53931533]
[1752156297673,0.06,157.14,157.1,33.42]
[1752156297674,0.06,157.14,157.11,0.72]
[1752156297858,0.72,157.13,157.09,7.53931533]
[1752156298058,7.08431137,157.13,157.09,0.72]
[1752156298382,13.24321296,157.14,157.1,7.53931533]
[1752156298570,13.24321296,157.14,157.09,6.36577366]
[1752156298571,0.06,157.14,157.11,0.72]
[1752156298781,0.06,157.14,157.12,6.81931533]
[1752156299089,0.06,157.14,157.12,7.53931533]
[1752156299287,0.06,157.14,157.13,7.53931533]
[1752156299660,0.06,157.14,157.13,0.72]
[1752156299860,0.06,157.14,157.11,6.81931533]
[1752156300364,0.06,157.14,157.11,7.53931533]
[1752156300561,7.53931533,157.13,157.08,34.95009354]
[1752156300761,7.53931533,157.12,157.08,0.03]
[1752156300962,0.72,157.12,157.08,7.56931533]
[1752156301272,6.81931533,157.13,157.09,0.72]
[1752156301476,7.53931533,157.12,157.08,0.03]
[1752156301671,0.06,157.14,157.08,0.03]
[1752156301672,6.81931533,157.09,157.08,0.03]
[1752156301882,7.53931533,157.09,157.08,0.03]
[1752156302203,13.9050929,157.09,157.08,0.03]
[1752156302687,6.75202314,157.08,157.03,1e-08]
[1752156302887,6.81931533,157.04,157.03,1e-08]
[1752156303267,7.53931533,157.04,157.03,1e-08]
[1752156303467,6.81931533,157.04,157.03,1e-08]
[1752156303674,7.53931533,157.04,157.03,1e-08]
[1752156304071,13.90711971,157.04,157.03,1e-08]
[1752156304382,13.18711971,157.04,157.03,1e-08]
[1752156304889,13.90711971,157.04,157.03,1e-08]
[1752156305881,6.36780438,157.04,157.03,1e-08]
[1752156306066,13.18711971,157.04,157.03,1e-08]
[1752156306574,6.81931533,157.06,157.03,1e-08]
[1752156307370,39.78623407,157.08,157.03,6.81931534]
[1752156307571,46.6055494,157.08,157.04,0.72]
[1752156308174,46.6055494,157.08,157.05,0.72]
[1752156308371,47.3255494,157.08,157.03,7.53931534]
[1752156308578,47.3255494,157.08,157.03,6.81931534]
[1752156308781,47.3255494,157.08,157.04,0.72]
[1752156309992,13.1855494,157.08,157.03,13.18745433]
[1752156310208,146.42,157.13,157.07,6.81931533]
[1752156310496,6.36486044,157.12,157.09,6.81931533]
[1752156310673,6.36486044,157.12,157.08,7.53931533]
[1752156311202,6.36486044,157.12,157.09,0.72]
[1752156311386,6.36486044,157.12,157.08,6.81931533]
[1752156311589,7.53931533,157.11,157.05,0.72]
[1752156311782,6.81931533,157.11,157.07,6.81931533]
[1752156312094,6.36486044,157.12,157.08,7.53931533]
[1752156312473,7.08486044,157.12,157.08,7.53931533]
[1752156313388,6.36537237,157.1,157.06,7.53931533]
[1752156313761,7.08537237,157.1,157.06,7.53931533]
[1752156314265,6.36537237,157.1,157.07,6.81931533]
[1752156314490,6.36537237,157.1,157.07,7.53931533]
[1752156314887,6.36537237,157.1,157.06,6.81931533]
[1752156315073,6.36537237,157.1,157.06,7.53931533]
[1752156315681,6.36537237,157.1,157.07,0.72]
[1752156316670,13.9046877,157.1,157.06,6.81931533]
[1752156316868,0.72,157.09,157.06,26.0]
[1752156317081,7.53931533,157.08,157.03,7.53931534]
[1752156317895,13.90590347,157.07,157.03,7.53931534]
[1752156318490,7.08658814,157.07,157.03,7.53931534]
[1752156318795,6.81931533,157.05,157.03,1e-08]
[1752156318994,7.53931533,157.06,157.03,1e-08]
[1752156319197,6.36658814,157.07,157.03,1e-08]
[1752156319198,13.18590347,157.07,157.03,1e-08]
[1752156319371,13.18590347,157.07,157.03,7.53931534]
[1752156319787,7.02658814,157.07,157.03,0.72000001]
[1752156319985,13.84590347,157.07,157.03,0.72000001]
[1752156320580,7.47931533,157.06,157.03,1e-08]
[1752156320803,6.81931533,157.05,157.03,1e-08]
[1752156321100,7.47931533,157.05,157.03,1e-08]
[1752156321598,7.47931533,157.04,157.03,1e-08]
[1752156321772,13.84711971,157.04,157.03,1e-08]
[1752156322171,29.76663066,157.04,156.96,10.89349975]
[1752156322378,6.81931533,157.01,156.96,8.82603513]
[1752156322573,7.47931533,157.01,156.96,8.82603513]
[1752156322803,33.4,157.03,156.99,6.81931533]
[1752156323206,34.06,157.03,156.99,6.81931533]
[1752156323781,33.4,157.03,156.99,6.81931533]
[1752156324012,33.4,157.03,157.0,6.81931533]
[1752156324212,33.4,157.03,156.99,7.53931533]
[1752156324213,40.42834964,157.03,156.99,7.53931533]
[1752156324420,40.42834964,157.03,156.98,7.53931533]
[1752156324581,13.84766497,157.03,156.98,7.53931533]
[1752156324783,13.84766497,157.03,156.99,6.81931533]
[1752156325491,6.36834964,157.03,157.0,6.81931533]
[1752156325698,6.36834964,157.03,157.0,7.53931533]
[1752156326510,6.36834964,157.03,157.0,0.72]
[1752156326692,6.36834964,157.03,156.99,6.81931533]
[1752156327108,6.36834964,157.03,157.0,7.53931533]
[1752156327417,13.18715037,157.04,157.0,7.53931533]
[1752156328296,13.84715037,157.04,157.0,7.53931533]
[1752156328815,7.02783504,157.04,157.0,7.53931533]
[1752156329125,13.84715037,157.04,157.0,7.53931533]
[1752156329595,13.18715037,157.04,157.0,7.53931533]
[1752156329796,13.84715037,157.04,157.0,7.53931533]
[1752156330688,13.18686812,157.05,157.01,0.72]
[1752156330897,6.36755279,157.05,157.02,0.72]
[1752156331383,7.02755279,157.05,157.01,6.81931533]
[1752156331611,7.02755279,157.05,157.01,7.53931533]
[1752156332011,6.36755279,157.05,157.01,7.53931533]
[1752156332537,6.36688804,157.07,157.03,6.81931533]
[1752156332833,6.36688804,157.07,157.03,7.53931533]
[1752156333133,7.90658843,157.08,157.04,7.53931533]
[1752156333436,6.36618843,157.08,157.05,0.72]
[1752156333814,6.36594457,157.09,157.05,0.72]
[1752156334009,0.72,157.1,157.05,7.53931533]
[1752156334010,13.90495943,157.1,157.05,7.53931533]
[1752156334240,6.81931533,157.09,157.05,7.53931533]
[1752156334426,13.90495943,157.1,157.06,0.72]
[1752156334730,7.0856441,157.1,157.06,0.72]
[1752156335041,13.24495943,157.1,157.06,0.72]
[1752156335338,13.90495943,157.1,157.06,0.72]
[1752156336530,13.24495943,157.1,157.05,6.81931533]
[1752156336726,13.90495943,157.1,157.05,6.81931533]
[1752156336931,13.90495943,157.1,157.05,7.53931533]
[1752156337133,13.90495943,157.1,157.06,7.53931533]
[1752156337532,6.4256441,157.1,157.07,0.72]
[1752156338246,0.06,157.1,157.07,7.53931533]
[1752156338438,0.06,157.1,157.08,0.72]
[1752156339049,0.06,157.1,157.06,0.72]
[1752156339225,0.06,157.1,157.08,0.72]
[1752156342334,0.06,157.1,157.06,6.81931533]
[1752156342531,0.72,157.1,157.06,6.81931533]
[1752156342738,0.72,157.1,157.06,7.53931533]
[1752156342944,0.66,157.09,157.06,6.81931533]
[1752156343550,0.06,157.1,157.07,6.81931533]
[1752156344059,0.06,157.1,157.07,0.72]
[1752156344264,0.06,157.1,157.08,0.72]
[1752156344563,0.06,157.1,157.07,7.53931533]
[1752156344743,0.06,157.1,157.08,0.72]
[1752156345449,0.06,157.1,157.07,6.81931533]
[1752156345652,0.06,157.1,157.07,7.53931533]
[1752156345853,0.06,157.1,157.08,0.72]
[1752156346442,0.06,157.1,157.08,7.53931533]
[1752156346867,0.06,157.1,157.07,6.36655539]
[1752156347049,0.06,157.1,157.09,7.53931533]
[1752156349576,0.06,157.1,157.09,0.72]
[1752156349758,0.06,157.1,157.09,7.53931533]
[1752156351265,0.06,157.1,157.06,33.38]
[1752156351468,0.76,157.1,157.07,6.81931533]
[1752156352576,6.42537237,157.1,157.07,7.51931533]
[1752156353483,6.42537237,157.1,157.07,6.81931533]
[1752156353786,6.42537237,157.1,157.07,7.51931533]
[1752156354289,6.42537237,157.1,157.07,0.7]
[1752156354586,13.8854738,157.09,157.05,6.81931533]
[1752156354790,13.8854738,157.09,157.05,7.51931533]
[1752156355473,7.51931533,157.08,157.04,6.81931533]
[1752156355670,7.51931533,157.08,157.04,7.51931533]
[1752156356079,7.51931533,157.08,157.04,0.7]
[1752156356288,6.81931533,157.05,157.03,0.03]
[1752156356780,6.36618283,157.08,157.04,0.7]
[1752156356964,13.18549816,157.08,157.04,0.7]
[1752156357173,13.88549816,157.08,157.04,0.7]
[1752156357885,6.81931533,157.07,157.04,0.7]
[1752156358277,7.51931533,157.07,157.03,0.03]
[1752156358478,7.51931533,157.07,157.03,0.73]
[1752156358679,22.28163992,157.08,157.03,0.03]
[1752156358680,7.51931533,157.06,157.03,0.03]
[1752156359374,7.51931533,157.05,157.03,0.03]
[1752156359597,6.81931533,157.04,157.03,0.03]
[1752156359772,7.51931533,157.05,157.03,0.03]
[1752156359967,6.36780438,157.04,157.03,0.03]
[1752156360288,13.88711971,157.04,157.03,0.03]
[1752156360790,53.52625818,157.04,157.03,1e-08]
[1752156360974,26.28432314,157.01,157.0,1e-08]
[1752156361188,59.66432314,157.01,157.0,1e-08]
[1752156361373,67.18363847,157.01,157.0,1e-08]
[1752156362115,73.55265955,157.01,157.0,1e-08]
[1752156363110,66.59118265,157.01,157.0,1e-08]
[1752156363282,73.41049798,157.01,157.0,1e-08]
[1752156363597,66.73334422,157.01,157.0,1e-08]
[1752156363798,73.55265955,157.01,157.0,1e-08]
[1752156366400,92.20230841,157.01,157.0,1e-08]
[1752156366608,51.118072,156.97,156.86,7.59089418]
[1752156366837,51.118072,156.97,156.81,8.88677995]
[1752156366838,39.63863066,156.89,156.81,8.88677995]
[1752156367126,6.81931533,156.82,156.74,0.7]
[1752156367335,6.81931533,156.76,156.71,12.70827665]
[1752156367625,6.81931533,156.74,156.71,0.7]
[1752156367808,66.19931533,156.8,156.71,6.81931533]
[1752156367809,6.81931533,156.75,156.71,6.81931533]
[1752156368008,6.81931533,156.76,156.71,5.81931533]
[1752156368204,0.7,156.79,156.72,6.81931533]
[1752156368434,0.7,156.79,156.69,6.81931533]
[1752156368435,7.07795777,156.79,156.69,6.81931533]
[1752156368617,6.81931533,156.73,156.69,0.2406048]
[1752156368789,0.7,156.76,156.69,0.2406048]
[1752156368993,0.7,156.76,156.71,6.81931533]
[1752156368994,6.81931533,156.76,156.71,6.81931533]
[1752156369219,0.7,156.84,156.76,0.14216157]
[1752156369395,6.81931533,156.8,156.72,6.79585618]
[1752156369598,6.81931533,156.76,156.69,0.2406048]
[1752156369818,0.7,156.79,156.7,26.7]
[1752156370015,6.81931533,156.77,156.72,6.81931533]
[1752156370197,26.0,156.8,156.75,6.81931533]
[1752156370400,6.81931533,156.82,156.77,6.81931533]
[1752156370607,7.51931533,156.83,156.78,7.51931533]
[1752156370911,10.95828467,156.83,156.79,0.7]
[1752156371121,10.95828467,156.83,156.78,10.25828467]
[1752156371320,26.7,156.83,156.78,10.25828467]
[1752156371494,0.7,156.83,156.78,10.95828467]
[1752156371695,10.95828467,156.83,156.78,10.95828467]
[1752156371991,36.95828467,156.83,156.78,10.95828467]
[1752156372194,43.33494054,156.83,156.78,10.95828467]
[1752156372795,43.33494054,156.83,156.78,0.7]
[1752156373016,43.33494054,156.83,156.78,10.95828467]
[1752156373211,0.7,156.82,156.78,10.95828467]
[1752156373623,10.95828467,156.82,156.76,0.7]
[1752156373804,0.7,156.82,156.78,10.25828467]
[1752156374209,0.7,156.84,156.79,0.7]
[1752156374505,0.7,156.84,156.76,6.3791732]
[1752156374506,10.25828467,156.84,156.8,10.95828467]
[1752156374722,6.37514695,156.86,156.81,0.7]
[1752156374927,10.95828467,156.86,156.81,0.7]
[1752156375100,10.95828467,156.86,156.81,10.95828467]
[1752156375101,10.25828467,156.85,156.81,10.95828467]
[1752156375301,10.95828467,156.85,156.8,10.25828467]
[1752156375502,0.7,156.85,156.8,0.7]
[1752156375700,10.95828467,156.85,156.8,10.95828467]
[1752156375927,10.25828467,156.83,156.76,6.6405]
[1752156376101,10.25828467,156.83,156.78,0.03]
[1752156376102,10.25828467,156.82,156.78,0.03]
[1752156376425,16.63519134,156.82,156.78,10.98828467]
[1752156376614,17.33519134,156.82,156.78,0.03]
[1752156376929,43.33519134,156.82,156.78,0.03]
[1752156377418,43.33519134,156.82,156.78,10.98828467]
[1752156377830,10.95828467,156.81,156.78,0.03]
[1752156378032,43.33519134,156.82,156.78,0.03]
[1752156378202,33.07690667,156.82,156.78,0.03]
[1752156378535,10.25828467,156.8,156.78,0.03]
[1752156378731,10.25828467,156.79,156.78,0.03]
[1752156379034,10.95828467,156.79,156.78,0.03]
[1752156379334,37.10044624,156.79,156.78,0.03]
[1752156379627,70.60044624,156.79,156.78,0.03]
[1752156380127,89.2500951,156.79,156.78,1e-08]
[1752156380338,79.88633754,156.79,156.78,1e-08]
[1752156380721,26.0,156.76,156.69,0.2406048]
[1752156380917,10.25828467,156.71,156.69,0.2406048]
[1752156381122,10.25828467,156.71,156.65,1.3167954]
[1752156381123,36.40044624,156.7,156.65,1.3167954]
[1752156381322,0.14216157,156.68,156.65,1.3167954]
[1752156381554,26.7,156.7,156.65,11.57508007]
[1752156381752,10.25828467,156.68,156.65,1.3167954]
[1752156381923,10.25828467,156.68,156.51,168.29322702]
[1752156381924,10.54260781,156.66,156.51,8.1217]
[1752156382119,0.7,156.69,156.65,10.25828467]
[1752156382358,3.3110777,156.72,156.68,10.25828467]
[1752156382359,26.0,156.72,156.68,10.25828467]
[1752156382547,32.52174689,156.75,156.69,0.66]
[1752156382750,32.52174689,156.75,156.71,10.25828467]
[1752156382931,10.25828467,156.78,156.73,10.25828467]
[1752156383127,17.33664925,156.78,156.73,10.91828467]
[1752156383439,17.33664925,156.78,156.7,0.66]
[1752156383440,10.25828467,156.76,156.7,0.66]
[1752156383641,10.25828467,156.75,156.7,10.91828467]